fUST/lending_fUST_20260628
["ID","MTS","AMOUNT","RATE_DAILY","PERIOD"]
[426589873,1782641787000,150.24020129,0.00029159,110]
[426589874,1782641787000,150.24020129,0.00029159,110]
[426589884,1782642027000,150.24020128,0.00029159,110]
[426589982,1782642633000,-784.83754016,0.00021864,7]
[426589985,1782642633000,-1185.33753516,0.00022301,7]
[426589977,1782642633000,-400.499995,0.00021864,7]
[426589987,1782642633000,-1096.3691115,0.00022957,7]
[426589983,1782642633000,-186.0,0.00021864,2]
[426590048,1782642638000,-607.58221423,0.00023613,7]
[426590046,1782642638000,-88.96842366,0.00022957,7]
[426590044,1782642638000,-2215.0,0.00021864,2]
[426590480,1782642644000,-186.0,0.00027864,2]
[426590478,1782642644000,-215.2944423,0.00027597,2]
[426590484,1782642644000,-1236.98343701,0.00028208,2]
[426590474,1782642644000,-376.51017832,0.0002565,2]
[426590468,1782642644000,-577.75532093,0.00023613,7]
[426590488,1782642644000,-500.0,0.00028948,2]
[426590470,1782642644000,-1185.3375352,0.00024487,7]
[426590472,1782642644000,-186.0,0.00024864,2]
[426590476,1782642644000,-613.61453161,0.00027001,2]
[426590486,1782642644000,-3424.8552672,0.0002877,2]
[426590505,1782642644000,-1260.67771364,0.0002905,2]
[426590492,1782642644000,-443.82034922,0.00029049,2]
[426590507,1782642644000,-21955.40775424,0.0002905,2]
[426590503,1782642644000,-611.9402848,0.00029049,2]
[426590501,1782642644000,-202.58418172,0.00029049,2]
[426590490,1782642644000,-2712.51308653,0.00029039,2]
[426590482,1782642644000,-153.89932062,0.000279,3]
[426590497,1782642644000,-789.01395418,0.00029049,2]
[426590494,1782642644000,-382.5583129,0.00029049,2]
[426590499,1782642644000,-680.10366738,0.00029049,2]
[426590495,1782642644000,-266.64311256,0.00029049,2]
[426591170,1782642806000,3500.0,0.0003,30]
[426591246,1782643831000,-306.84,0.000194,2]
[426591249,1782643831000,-306.84,0.00020563,2]
[426591247,1782643831000,-352.61857122,0.00020357,7]
[426591251,1782643831000,-352.61857122,0.00020764,7]
[426591252,1782643831000,-352.61857122,0.00021375,7]
[426591254,1782643831000,-352.61857122,0.00021986,7]
[426591256,1782643831000,-352.61857125,0.000228,7]
[426591261,1782643831000,-1421.0,0.00023589,2]
[426591258,1782643831000,-300.0,0.00023588,2]
[426591268,1782643831000,-1062.66198029,0.00026218,2]
[426591265,1782643831000,-220.0,0.00023999,2]
[426591267,1782643831000,-168.8229716,0.00025153,2]
[426591270,1782643831000,-450.86859835,0.00026449,2]
[426591272,1782643831000,-186.0,0.00026589,2]
[426591274,1782643831000,-172.752071,0.00027543,2]
[426591276,1782643831000,-325.259675,0.00027598,2]
[426591279,1782643831000,-280.92761352,0.00019206,2]
[426591263,1782643831000,-186.0,0.00023589,2]
[426591259,1782643831000,-1844.0,0.00023589,2]
[426591639,1782643838000,-184.0,0.00028,2]
[426591615,1782643838000,-252.39845507,0.00019206,2]
[426591613,1782643838000,-280.92761352,0.0001844,14]
[426591616,1782643838000,-536.88145359,0.00019206,2]
[426591618,1782643838000,-276.66602578,0.00027598,2]
[426591631,1782643838000,-630.90860262,0.00027598,2]
[426591632,1782643838000,-1775.2813969,0.00027598,2]
[426591641,1782643838000,-190.0,0.00028,2]
[426591642,1782643838000,-281.13550758,0.00028208,2]
[426591635,1782643838000,-864.67942218,0.00027986,2]
[426591637,1782643838000,-159.0,0.00028,2]
[426591634,1782643838000,-153.89932062,0.000279,5]
[426591760,1782644233000,12881.69996362,0.000125,2]
[426591761,1782644244000,417.44425255,0.0001,10]
[426591762,1782644255000,5947.97585917,0.000118,5]
[426591925,1782645031000,-448.333,0.00023589,2]
[426591933,1782645031000,-754.623,0.00026589,2]
[426591923,1782645031000,-1844.0,0.00023589,2]
[426591939,1782645031000,-500.0,0.00027002,2]
[426591936,1782645031000,-446.0,0.00026589,2]
[426591937,1782645031000,-186.0,0.00026589,2]
[426591927,1782645031000,-186.0,0.00023589,2]
[426591931,1782645031000,-245.0,0.00026588,2]
[426591941,1782645031000,-500.0,0.00027002,2]
[426591943,1782645031000,-500.0,0.00027002,2]
[426591929,1782645031000,-1189.798289,0.00026363,2]
[426591947,1782645032000,-500.0,0.00027002,2]
[426591945,1782645032000,-500.0,0.00027002,2]
[426591949,1782645032000,-540.3656611,0.00027002,2]
[426591951,1782645032000,-267.28436195,0.00027002,2]
[426591953,1782645032000,-32.39616764,0.00027002,2]
[426591962,1782645032000,-502.29208379,0.00027002,2]
[426591955,1782645032000,-467.60383236,0.00027002,2]
[426591963,1782645032000,-52.86818543,0.00027002,2]
[426591960,1782645032000,-500.0,0.00027002,2]
[426591959,1782645032000,-500.0,0.00027002,2]
[426591969,1782645032000,-1156.77091289,0.00027003,2]
[426591965,1782645032000,-559.07209937,0.00027002,2]
[426591971,1782645032000,-1497.11482284,0.00027003,2]
[426591967,1782645032000,-6590.92839881,0.00027003,2]
[426591973,1782645032000,-777.01190322,0.00027003,2]
[426591972,1782645032000,-1547.65155936,0.00027003,2]
[426591957,1782645032000,-186.88859951,0.00027002,2]
[426592077,1782645038000,-1932.30748505,0.00027003,2]
[426592075,1782645038000,-933.43019471,0.00027003,2]
[426592059,1782645038000,-309.97723342,0.00027003,2]
[426592045,1782645038000,-4436.69521524,0.00027003,2]
[426592043,1782645038000,-7145.06849609,0.00027003,2]
[426592098,1782645041000,-3319.13190052,0.00027003,2]
[426592100,1782645041000,-10213.2089443,0.00027003,2]
[426592101,1782645041000,-2321.52644053,0.00027003,2]
[426592124,1782645046000,-58721.46285742,0.00027003,2]
[426592125,1782645046000,-165.0,0.00027827,10]
[426592127,1782645046000,-231.0,0.00028,2]
[426592126,1782645046000,-159.0,0.00028,2]
[426592128,1782645046000,-242.0,0.00028,2]
[426592130,1782645046000,-500.0,0.00028049,2]
[426592129,1782645046000,-500.0,0.00028049,2]
[426592140,1782645046000,-853.25796021,0.00029049,2]
[426592131,1782645046000,-1957.1611734,0.00028208,2]
[426592137,1782645046000,-242.0,0.00029,2]
[426592135,1782645046000,-159.0,0.00029,2]
[426592138,1782645046000,-500.0,0.00029048,2]
[426592132,1782645046000,-167.6,0.00028304,2]
[426592141,1782645046000,-185.75950275,0.00029049,2]
[426592150,1782645046000,-45259.15339809,0.0002905,2]
[426592145,1782645046000,-343.06868704,0.00029049,2]
[426592149,1782645046000,-49032.59886421,0.0002905,2]
[426592146,1782645046000,-354.48915839,0.00029049,2]
[426592148,1782645046000,-500.0,0.00029049,2]
[426592144,1782645046000,-190.78449952,0.00029049,2]
[426592143,1782645046000,-291.02205357,0.00029049,2]
[426592147,1782645046000,-1333.21556282,0.00029049,2]
[426592139,1782645046000,-479.95760262,0.00029049,2]
[426592134,1782645046000,-934.7020076,0.00028708,2]
[426592133,1782645046000,-529.24007899,0.00028423,5]
[426592142,1782645046000,-161.67891865,0.00029049,2]
[426592136,1782645046000,-231.0,0.00029,2]
[426593091,1782645401000,1376.0043185,0.00027944,120]
[426593099,1782645689000,9307.95795637,0.00029156,120]
[426593109,1782645864000,642.0,0.0003013,30]
[426593147,1782646119000,5752.87992466,0.00013,2]
[426593267,1782646227000,6990.00701656,0.00029158,120]
[426593329,1782646238000,-4242.0,0.00012741,2]
[426593328,1782646238000,-758.0,0.00012741,2]
[426593330,1782646238000,-4658.06963251,0.0001287,2]
[426593353,1782646253000,-3797.62248779,0.00013,2]
[426593354,1782646253000,-4559.68904084,0.00013,2]
[426593352,1782646253000,-802.22357259,0.00013,2]
[426593350,1782646253000,-2063.62854676,0.00013,2]
[426593349,1782646253000,-341.93036749,0.0001287,2]
[426593351,1782646253000,-705.9449265,0.00013,2]
[426593356,1782646270000,160.0,0.00029158,30]
[426593355,1782646270000,-386.49211381,0.00013,2]
[426593430,1782646858000,262.02942358,0.000125,2]
[426593580,1782647432000,-281.06005016,0.0002325,2]
[426593579,1782647432000,-234.36584962,0.00022078,2]
[426593583,1782647432000,-165.893109,0.0002447,2]
[426593582,1782647432000,-296.93994984,0.0002325,2]
[426593578,1782647432000,-323.06873358,0.00022078,2]
[426593584,1782647432000,-306.0,0.0002576,2]
[426593586,1782647432000,-190.29,0.00026518,7]
[426593587,1782647432000,-3262.4285157,0.00026534,2]
[426593588,1782647432000,-806.25289426,0.00026674,2]
[426593589,1782647432000,-670.94,0.00026674,2]
[426593585,1782647432000,-190.29,0.00026418,7]
[426593651,1782647447000,-378.984218,0.00026674,2]
[426593654,1782647763000,294.9634849,0.00029156,120]
[426593656,1782647848000,8100.4488777,7.6e-05,2]
[426593657,1782647852000,215.08095502,0.0001,2]
[426593658,1782647856000,276.74560596,0.00012,2]
[426593985,1782648638000,-5000.0,0.00019406,2]
[426594024,1782648639000,-500.0,0.00027352,2]
[426594032,1782648639000,-500.0,0.00027352,2]
[426594031,1782648639000,-151.5,0.00027352,2]
[426594026,1782648639000,-500.0,0.00027352,2]
[426594025,1782648639000,-151.5,0.00027352,2]
[426594018,1782648639000,-500.0,0.00027352,2]
[426594022,1782648639000,-532.23955305,0.00027352,2]
[426594020,1782648639000,-500.0,0.00027352,2]
[426594021,1782648639000,-500.0,0.00027352,2]
[426594019,1782648639000,-500.0,0.00027352,2]
[426594027,1782648639000,-151.5,0.00027352,2]
[426594023,1782648639000,-500.0,0.00027352,2]
[426594030,1782648639000,-500.0,0.00027352,2]
[426594037,1782648639000,-500.0,0.00027352,2]
[426594029,1782648639000,-151.5,0.00027352,2]
[426594034,1782648639000,-500.0,0.00027352,2]
[426594033,1782648639000,-160.95897823,0.00027352,2]
[426594035,1782648639000,-500.0,0.00027352,2]
[426594016,1782648639000,-500.0,0.00027352,2]
[426594038,1782648639000,-500.0,0.00027352,2]
[426594036,1782648639000,-500.0,0.00027352,2]
[426594039,1782648639000,-500.0,0.00027352,2]
[426594042,1782648639000,-500.0,0.00027352,2]
[426594040,1782648639000,-500.0,0.00027352,2]
[426594041,1782648639000,-500.0,0.00027352,2]
[426594043,1782648639000,-259.57364749,0.00027352,2]
[426594044,1782648639000,-151.0,0.00027352,2]
[426594028,1782648639000,-500.0,0.00027352,2]
[426594017,1782648639000,-500.0,0.00027352,2]
[426594011,1782648639000,-508.7363319,0.00027352,2]
[426594012,1782648639000,-516.65958528,0.00027352,2]
[426593986,1782648639000,-679.75199588,0.0002,3]
[426593989,1782648639000,-808.39459326,0.0002244,2]
[426593988,1782648639000,-517.37253968,0.0002244,2]
[426593990,1782648639000,-405.13046673,0.0002244,2]
[426593993,1782648639000,-261.9118596,0.00023445,2]
[426593991,1782648639000,-633.01635426,0.0002244,2]
[426593992,1782648639000,-334.47497807,0.00023445,2]
[426593987,1782648639000,-316.0,0.0002,2]
[426593994,1782648639000,-284.54128116,0.00024887,2]
[426593995,1782648639000,-1844.0,0.00024941,2]
[426593996,1782648639000,-764.01049651,0.00025579,2]
[426593998,1782648639000,-190.325517,0.0002569,2]
[426593997,1782648639000,-942.3514518,0.00025579,2]
[426594015,1782648639000,-500.0,0.00027352,2]
[426593999,1782648639000,-182.08430815,0.00026407,7]
[426594005,1782648639000,-151.0,0.00027351,2]
[426594004,1782648639000,-3750.9841135,0.00027251,2]
[426594000,1782648639000,-7112.650513,0.0002644,2]
[426594003,1782648639000,-182.08430815,0.00026935,7]
[426594002,1782648639000,-241.6,0.00026935,7]
[426594006,1782648639000,-151.0,0.00027351,2]
[426594008,1782648639000,-500.0,0.00027352,2]
[426594007,1782648639000,-500.0,0.00027352,2]
[426594009,1782648639000,-500.0,0.00027352,2]
[426594046,1782648639000,-500.0,0.00027494,2]
[426594010,1782648639000,-500.0,0.00027352,2]
[426594014,1782648639000,-623.39431192,0.00027352,2]
[426594013,1782648639000,-500.0,0.00027352,2]
[426594001,1782648639000,-500.0,0.00026934,2]
[426594045,1782648639000,-4821.33429308,0.00027422,2]
[426594048,1782648639000,-500.0,0.00027586,2]
[426594047,1782648639000,-3581.2133732,0.00027497,2]
[426594082,1782648639000,-1000.0,0.00027596,2]
[426594081,1782648639000,-1000.0,0.00027596,2]
[426594084,1782648639000,-1000.0,0.00027596,2]
[426594090,1782648639000,-1000.0,0.00027596,2]
[426594083,1782648639000,-1000.0,0.00027596,2]
[426594086,1782648639000,-1000.0,0.00027596,2]
[426594087,1782648639000,-1000.0,0.00027596,2]
[426594088,1782648639000,-1000.0,0.00027596,2]
[426594089,1782648639000,-1000.0,0.00027596,2]
[426594091,1782648639000,-1000.0,0.00027596,2]
[426594092,1782648639000,-1000.0,0.00027596,2]
[426594093,1782648639000,-1114.08415614,0.00027596,2]
[426594094,1782648639000,-415243.92868531,0.00027597,2]
[426594080,1782648639000,-1000.0,0.00027596,2]
[426594102,1782648639000,-431.4648,0.00027624,3]
[426594096,1782648639000,-500.0,0.00027619,2]
[426594105,1782648639000,-182.08430815,0.00027727,7]
[426594097,1782648639000,-400.97,0.0002762,2]
[426594101,1782648639000,-300.0,0.00027623,4]
[426594103,1782648639000,-300.0,0.00027625,2]
[426594098,1782648639000,-424.75,0.00027621,7]
[426594095,1782648639000,-865.65,0.00027597,2]
[426594099,1782648639000,-323.785,0.00027622,2]
[426594104,1782648639000,-182.08430815,0.00027727,7]
[426594107,1782648639000,-169.12,0.00027787,2]
[426594106,1782648639000,-169.12,0.00027787,2]
[426594108,1782648639000,-3581.21337316,0.00027885,2]
[426594109,1782648639000,-169.12,0.00027887,2]
[426594100,1782648639000,-431.4648,0.00027623,2]
[426594075,1782648639000,-1000.0,0.00027596,2]
[426594085,1782648639000,-1000.0,0.00027596,2]
[426594078,1782648639000,-1000.0,0.00027596,2]
[426594049,1782648639000,-1237.35,0.00027587,3]
[426594052,1782648639000,-154.67,0.00027587,3]
[426594051,1782648639000,-309.34,0.00027587,3]
[426594050,1782648639000,-618.68,0.00027587,3]
[426594054,1782648639000,-194.72,0.00027594,2]
[426594053,1782648639000,-464.02,0.00027587,3]
[426594055,1782648639000,-500.0,0.00027594,2]
[426594056,1782648639000,-500.0,0.00027596,2]
[426594058,1782648639000,-500.0,0.00027596,2]
[426594077,1782648639000,-1000.0,0.00027596,2]
[426594061,1782648639000,-500.0,0.00027596,2]
[426594059,1782648639000,-500.0,0.00027596,2]
[426594060,1782648639000,-500.0,0.00027596,2]
[426594065,1782648639000,-500.0,0.00027596,2]
[426594057,1782648639000,-500.0,0.00027596,2]
[426594062,1782648639000,-500.0,0.00027596,2]
[426594074,1782648639000,-1000.0,0.00027596,2]
[426594063,1782648639000,-500.0,0.00027596,2]
[426594073,1782648639000,-303.03340303,0.00027596,2]
[426594070,1782648639000,-500.0,0.00027596,2]
[426594072,1782648639000,-500.0,0.00027596,2]
[426594071,1782648639000,-500.0,0.00027596,2]
[426594079,1782648639000,-1000.0,0.00027596,2]
[426594069,1782648639000,-500.0,0.00027596,2]
[426594068,1782648639000,-500.0,0.00027596,2]
[426594066,1782648639000,-500.0,0.00027596,2]
[426594067,1782648639000,-500.0,0.00027596,2]
[426594064,1782648639000,-500.0,0.00027596,2]
[426594076,1782648639000,-1000.0,0.00027596,2]
[426594119,1782648640000,-169.12,0.00028187,2]
[426594115,1782648640000,-151.0,0.00028,2]
[426594117,1782648640000,-481.1170959,0.00028055,2]
[426594114,1782648640000,-250.0,0.00028,2]
[426594113,1782648640000,-169.12,0.00027987,2]
[426594116,1782648640000,-228.0,0.00028,2]
[426594110,1782648640000,-158.63263046,0.000279,2]
[426594112,1782648640000,-1840.0,0.00027941,2]
[426594118,1782648640000,-169.12,0.00028087,2]
[426594111,1782648640000,-151.0,0.000279,18]
[426594121,1782648640000,-3581.21337316,0.00028274,2]
[426594132,1782648640000,-302454.65271881,0.0002871,2]
[426594120,1782648640000,-3449.7017938,0.00028208,2]
[426594131,1782648640000,-712.009024,0.00028687,2]
[426594130,1782648640000,-15786.542916,0.00028685,2]
[426594129,1782648640000,-3581.21337316,0.00028662,2]
[426594126,1782648640000,-500.0,0.000286,2]
[426594123,1782648640000,-151.0,0.000283,11]
[426594127,1782648640000,-151.0,0.000286,19]
[426594125,1782648640000,-182.08430815,0.0002852,7]
[426594124,1782648640000,-362.4,0.0002852,7]
[426594122,1782648640000,-169.12,0.00028287,2]
[426594128,1782648640000,-161.78,0.00028629,2]
[426594157,1782648647000,-764.01049651,0.0002871,2]
[426594196,1782649626000,154.06711218,0.0002915,120]
[426594429,1782649831000,-267.04919197,0.00024905,2]
[426594427,1782649831000,-226.26353544,0.00020196,7]
[426594468,1782649838000,-3.94877759,0.00024905,2]
[426594473,1782649838000,-197.651,0.00025922,2]
[426594474,1782649838000,-175.61691837,0.00026331,2]
[426594469,1782649838000,-309.71196521,0.00024905,2]
[426594471,1782649838000,-167.90088926,0.00024905,2]
[426594472,1782649838000,-301.91937906,0.00024905,2]
[426594470,1782649838000,-483.92494564,0.00024905,2]
[426594479,1782649838000,-225.11479242,0.00027596,2]
[426594477,1782649838000,-368.17002258,0.00027596,2]
[426594478,1782649838000,-1333.51821186,0.00027596,2]
[426594475,1782649838000,-416.72444121,0.00027596,2]
[426594476,1782649838000,-750.10399417,0.00027596,2]
[426594989,1782651038000,-586.27274097,0.00024905,2]
[426594988,1782651038000,-584.55771256,0.00024905,2]
[426594986,1782651038000,-202.81563199,0.00023905,2]
[426594987,1782651038000,-202.81563199,0.00023905,2]
[426595042,1782651729000,-433.45811007,0.00019798,2]
[426595043,1782651756000,500.0,0.00027998,120]
[426595044,1782651756000,500.0,0.00028272,120]
[426595046,1782651757000,500.0,0.0002882,120]
[426595045,1782651757000,500.0,0.00028546,120]
[426595048,1782651758000,500.0,0.00029368,120]
[426595047,1782651758000,500.0,0.00029094,120]
[426595049,1782651759000,544.70431951,0.00029642,120]
[426595261,1782652233000,-415.00960529,0.00018086,2]
[426595418,1782652238000,-801.07,0.00026699,2]
[426595419,1782652238000,-646.77,0.00026699,2]
[426595420,1782652238000,-1377.19,0.00026699,2]
[426595421,1782652238000,-1317.28,0.00026699,2]
[426595422,1782652238000,-500.0,0.00026699,2]
[426595430,1782652238000,-500.0,0.00026699,2]
[426595424,1782652238000,-500.0,0.00026699,2]
[426595426,1782652238000,-774.05,0.00026699,2]
[426595425,1782652238000,-1741.36,0.00026699,2]
[426595428,1782652238000,-151.54423306,0.00026699,2]
[426595427,1782652238000,-500.0,0.00026699,2]
[426595423,1782652238000,-788.02,0.00026699,2]
[426595417,1782652238000,-3282.11109933,0.00026599,2]
[426595416,1782652238000,-1341.4302046,0.00024602,2]
[426595414,1782652238000,-238.67524052,0.0002252,2]
[426595413,1782652238000,-2851.23376931,0.0002252,2]
[426595411,1782652238000,-439.17885472,0.00021,2]
[426595412,1782652238000,-1251.53976176,0.00021394,2]
[426595408,1782652238000,-420.76574009,0.00020286,2]
[426595409,1782652238000,-657.4464689,0.00020286,2]
[426595410,1782652238000,-1409.99840396,0.0002061,2]
[426595407,1782652238000,-1829.58552315,0.00020286,2]
[426595405,1782652238000,-2998.10772623,0.00018454,2]
[426595406,1782652238000,-200.0,0.00019434,2]
[426595404,1782652238000,-5000.0,0.00018269,2]
[426595403,1782652238000,-553.3486484,0.00018086,2]
[426595415,1782652238000,-158.0,0.00023601,2]
[426595429,1782652238000,-500.0,0.00026699,2]
[426595437,1782652238000,-671.25361465,0.00026799,2]
[426595433,1782652238000,-829.92,0.00026701,2]
[426595432,1782652238000,-500.0,0.00026701,2]
[426595459,1782652238000,-506.80818369,0.00026802,2]
[426595456,1782652238000,-500.0,0.00026801,2]
[426595457,1782652238000,-1121.34,0.00026801,2]
[426595455,1782652238000,-2016.48,0.00026801,2]
[426595453,1782652238000,-1305.68,0.00026801,2]
[426595452,1782652238000,-1187.63,0.00026801,2]
[426595454,1782652238000,-1170.96,0.00026801,2]
[426595451,1782652238000,-671.25361465,0.00026799,2]
[426595449,1782652238000,-671.25361465,0.00026799,2]
[426595450,1782652238000,-671.25361465,0.00026799,2]
[426595447,1782652238000,-671.25361465,0.00026799,2]
[426595448,1782652238000,-671.25361465,0.00026799,2]
[426595458,1782652238000,-2086.22,0.00026801,2]
[426595446,1782652238000,-671.25361465,0.00026799,2]
[426595431,1782652238000,-2233.61,0.00026701,2]
[426595435,1782652238000,-266.018392,0.00026799,2]
[426595434,1782652238000,-158.0,0.0002671,2]
[426595444,1782652238000,-671.25361465,0.00026799,2]
[426595440,1782652238000,-671.25361465,0.00026799,2]
[426595436,1782652238000,-671.25361465,0.00026799,2]
[426595439,1782652238000,-671.25361465,0.00026799,2]
[426595442,1782652238000,-671.25361465,0.00026799,2]
[426595441,1782652238000,-671.25361465,0.00026799,2]
[426595443,1782652238000,-671.25361465,0.00026799,2]
[426595445,1782652238000,-671.25361465,0.00026799,2]
[426595438,1782652238000,-671.25361465,0.00026799,2]
[426595474,1782652239000,-500.0,0.00026802,2]
[426595475,1782652239000,-533.45586905,0.00026802,2]
[426595476,1782652239000,-597.86,0.00026802,2]
[426595477,1782652239000,-535.43402678,0.00026802,2]
[426595483,1782652239000,-547.22453876,0.00026802,2]
[426595480,1782652239000,-505.62822637,0.00026802,2]
[426595479,1782652239000,-501.86513742,0.00026802,2]
[426595482,1782652239000,-621.15,0.00026802,2]
[426595481,1782652239000,-518.53325655,0.00026802,2]
[426595471,1782652239000,-533.63859188,0.00026802,2]
[426595478,1782652239000,-509.64016428,0.00026802,2]
[426595472,1782652239000,-500.0,0.00026802,2]
[426595465,1782652239000,-500.0,0.00026802,2]
[426595484,1782652239000,-572.43318703,0.00026802,2]
[426595470,1782652239000,-1000.0,0.00026802,2]
[426595468,1782652239000,-500.0,0.00026802,2]
[426595469,1782652239000,-510.56146182,0.00026802,2]
[426595467,1782652239000,-501.51313545,0.00026802,2]
[426595464,1782652239000,-501.41734451,0.00026802,2]
[426595466,1782652239000,-500.0,0.00026802,2]
[426595463,1782652239000,-500.0,0.00026802,2]
[426595462,1782652239000,-500.0,0.00026802,2]
[426595460,1782652239000,-500.0,0.00026802,2]
[426595461,1782652239000,-500.0,0.00026802,2]
[426595473,1782652239000,-403.14013096,0.00026802,2]
[426595485,1782652239000,-500.0,0.00026802,2]
[426595500,1782652239000,-500.0,0.00026802,2]
[426595488,1782652239000,-508.98925958,0.00026802,2]
[426595486,1782652239000,-501.65497002,0.00026802,2]
[426595511,1782652239000,-504.04404818,0.00026802,2]
[426595512,1782652239000,-503.85650969,0.00026802,2]
[426595510,1782652239000,-505.84688798,0.00026802,2]
[426595509,1782652239000,-434.26736304,0.00026802,2]
[426595508,1782652239000,-502.8933632,0.00026802,2]
[426595505,1782652239000,-585.692194,0.00026802,2]
[426595506,1782652239000,-566.65521751,0.00026802,2]
[426595504,1782652239000,-504.93324739,0.00026802,2]
[426595502,1782652239000,-889.52,0.00026802,2]
[426595503,1782652239000,-904.7,0.00026802,2]
[426595501,1782652239000,-503.02598777,0.00026802,2]
[426595507,1782652239000,-1000.0,0.00026802,2]
[426595496,1782652239000,-502.56397417,0.00026802,2]
[426595497,1782652239000,-500.0,0.00026802,2]
[426595487,1782652239000,-514.40977158,0.00026802,2]
[426595489,1782652239000,-321.64803793,0.00026802,2]
[426595493,1782652239000,-516.80044893,0.00026802,2]
[426595491,1782652239000,-512.52960644,0.00026802,2]
[426595492,1782652239000,-504.53069301,0.00026802,2]
[426595490,1782652239000,-492.90744862,0.00026802,2]
[426595495,1782652239000,-512.82960426,0.00026802,2]
[426595494,1782652239000,-831.08,0.00026802,2]
[426595498,1782652239000,-502.87356354,0.00026802,2]
[426595499,1782652239000,-506.18157449,0.00026802,2]
[426595533,1782652240000,-399.01889509,0.00026802,2]
[426595539,1782652240000,-983.33,0.00026802,2]
[426595537,1782652240000,-500.0,0.00026802,2]
[426595535,1782652240000,-253.18837898,0.00026802,2]
[426595543,1782652240000,-439.10089233,0.00026802,2]
[426595536,1782652240000,-505.11975924,0.00026802,2]
[426595528,1782652240000,-2.27229263,0.00026802,2]
[426595534,1782652240000,-505.79969065,0.00026802,2]
[426595532,1782652240000,-503.20172696,0.00026802,2]
[426595529,1782652240000,-101.62630637,0.00026802,2]
[426595530,1782652240000,-267.77939956,0.00026802,2]
[426595527,1782652240000,-1138.15,0.00026699,2]
[426595538,1782652240000,-502.86915841,0.00026802,2]
[426595531,1782652240000,-130.59429407,0.00026802,2]
[426595541,1782652240000,-500.44664985,0.00026802,2]
[426595551,1782652240000,-500.0,0.00026802,2]
[426595540,1782652240000,-506.67519961,0.00026802,2]
[426595555,1782652240000,-1175.25,0.00026802,2]
[426595557,1782652240000,-500.0,0.00026802,2]
[426595556,1782652240000,-500.0,0.00026802,2]
[426595554,1782652240000,-500.0,0.00026802,2]
[426595552,1782652240000,-940.90921649,0.00026802,2]
[426595542,1782652240000,-505.28441141,0.00026802,2]
[426595553,1782652240000,-89.19078351,0.00026802,2]
[426595549,1782652240000,-500.0,0.00026802,2]
[426595546,1782652240000,-500.0,0.00026802,2]
[426595547,1782652240000,-500.0,0.00026802,2]
[426595548,1782652240000,-500.0,0.00026802,2]
[426595544,1782652240000,-500.0,0.00026802,2]
[426595545,1782652240000,-508.28922946,0.00026802,2]
[426595550,1782652240000,-501.97957095,0.00026802,2]
[426595558,1782652241000,-512.8554145,0.00026802,2]
[426595559,1782652241000,-520.56371467,0.00026802,2]
[426595560,1782652241000,-500.0,0.00026802,2]
[426595561,1782652241000,-500.0,0.00026802,2]
[426595563,1782652241000,-522.32506268,0.00026802,2]
[426595566,1782652241000,-605.42762339,0.00026973,2]
[426595562,1782652241000,-538.56,0.00026802,2]
[426595564,1782652241000,-237.12973942,0.00026883,2]
[426595565,1782652241000,-236.09826058,0.00026883,2]
[426595590,1782652243000,-427.30160632,0.00026973,2]
[426595589,1782652243000,-224.94839368,0.00026973,2]
[426595588,1782652243000,-421.82160632,0.00026973,2]
[426595587,1782652243000,-195.64237661,0.00026973,2]
[426595599,1782652246000,-949.88839368,0.00026973,2]
[426595598,1782652246000,-500.0,0.00026699,2]
[426595602,1782652246000,-788.02,0.00026973,2]
[426595601,1782652246000,-500.0,0.00026973,2]
[426595603,1782652246000,-500.0,0.00026973,2]
[426595600,1782652246000,-1317.28,0.00026973,2]